[Event "41st Zalakaros Festival 2022"]
[Site "Zalakaros"]
[Date "2022.06.10"]
[Round "6.1"]
[White "Pranav Vijay"]
[Black "Csonka, Balazs"]
[Result "0-1"]
[ECO "C67"]
[WhiteElo "2265"]
[BlackElo "2498"]
[Annotator "TA"]
[PlyCount "84"]
[EventDate "2022.06.05"]
[EventType "swiss"]
[EventCountry "HUN"]
[SourceTitle "playchess.com"]
[Source "ChessBase"]
[SourceQuality "1"]
[TimeControl "40/5400+30:1800+30"]

{[%evp 16,83,11,13,20,10,16,11,12,-13,-12,-37,-7,-27,-1,-32,-25,-22,-25,-26,-23,-32,-18,-60,-29,-40,-19,-27,-23,-47,-40,-36,-43,-43,-44,-63,-40,-89,-75,-110,-104,-99,-109,-146,-127,-239,-237,-232,-231,-234,-243,-223,-214,-236,-229,-235,-222,-261,-236,-329,-325,-665,-666,-1863,-1021,-29991,-29991,-29998,-29999,-29999]} 1. e4 {[%emt 0:00:37]} e5 {[%emt 0:00:37]} 2. Nf3 {[%emt 0:00:08]} Nc6 {[%emt 0:00:04]} 3. Bb5 {[%emt 0:00:13]} Nf6 {[%emt 0:00:10]} 4. O-O {[%emt 0:00:10][%cal Bh1f1,Bf1e1,Be1e5,Be5e2][%mdl 32]} Nxe4 {[%emt 0:00:07]} 5. Re1 {[%emt 0:00:07]} Nd6 {[%emt 0:00:10]} 6. Nxe5 {[%emt 0:00:12]} Be7 {[%emt 0:00:08]} 7. Bf1 {[%emt 0:00:22]} Nxe5 {[%emt 0:00:10]} 8. Rxe5 {[%emt 0:00:07]} O-O {[%emt 0:00:07]} 9. d4 {[%emt 0:00:17]} Bf6 {[%emt 0:00:35] C67: Ruy Lopez: Berlin Defence: 4 0-0 Nxe4.} 10. Re2 {[%emt 0:07:17]} Nc4 {[%emt 0:01:34]} 11. b3 {[%emt 0:05:07]} Nb6 {[%emt 0:00:09] The position is equal.} 12. c4 {[%emt 0:02:45]} d5 {[%emt 0:00:39] [#]} 13. Ba3 $146 {[%emt 0:16:59]} (13. c5 $5 {[%cal Rc5b6]} Nd7 14. Ba3 $11) ({Predecessor:} 13. c5 Nd7 14. Bb2 Re8 15. Nc3 c6 16. Qd2 Rxe2 17. Nxe2 Nf8 18. Ng3 g6 19. Re1 {½-½ (98) Vachier Lagrave,M (2761)-Antipov,M (2615) Warsaw 2021}) 13... Re8 {[%emt 0:01:54]} (13... Bg4 {feels hotter.} 14. Bxf8 Qxf8 15. c5 Bxe2 16. Bxe2 Nd7) 14. Rxe8+ {[%emt 0:00:46]} Qxe8 {[%emt 0:00:10]} 15. c5 {[%emt 0:00:46]} (15. Nc3 $5 {[%cal Rc4c5]}) 15... Nd7 {[%emt 0:01:11]} 16. Nc3 {[%emt 0:00:09]} c6 {[%emt 0:00:28]} 17. b4 {[%emt 0:00:31]} Nf8 {[%emt 0:12:21]} 18. Qd2 {[%emt 0:07:57]} Bf5 {[%emt 0:03:16]} 19. Ne2 {[%emt 0:11:11]} Qd7 {[%emt 0:05:38]} 20. Bb2 {[%emt 0:01:41]} Re8 {[%emt 0:06:37]} 21. a4 {[%emt 0:02:32]} h5 {[%emt 0:02:49][%cal Bh7h5,Bh5h4][%mdl 32]} 22. Qc3 {[%emt 0:12:41]} h4 {[%emt 0:02:49][%cal Oh4h3]} 23. h3 {[%emt 0:00:57]} Bd8 {[%emt 0:07:48][%cal Bf6d8,Bd8c7,Bc7b8][%mdl 32]} 24. Bc1 {[%emt 0:03:20]} Bc7 {[%emt 0:04:12]} 25. Be3 {[%emt 0:08:58]} Ng6 {[%emt 0:09:25][%cal Bf8g6,Bg6e7,Be7f5,Bf5e3][%mdl 32]} 26. Kh1 {[%emt 0:04:04]} (26. b5 $15) 26... Bb8 $17 {[%emt 0:08:18] Black continues to play with concentration.} 27. f3 {[%emt 0:00:07]} Qc7 {[%emt 0:00:48][%csl Gb8][%cal Rc7h2] [#]} 28. Bg1 {[%emt 0:00:03] Against Qh2+} Ne7 {[%emt 0:04:06] Black is much more active.} 29. b5 {[%emt 0:03:36]} Bd7 {[%emt 0:05:45] aiming for ...Nf5.} 30. b6 {[%emt 0:00:17]} (30. bxc6 $17 {keeps fighting.} Bxc6 31. Qd2) 30... axb6 $19 {[%emt 0:00:30]} 31. cxb6 {[%emt 0:00:02]} Qxb6 {[%emt 0:00:14]} 32. Bh2 {[%emt 0:01:15]} Bxh2 {[%emt 0:01:59]} 33. Kxh2 {[%emt 0:00:01]} Nf5 {[%emt 0:00:21]} 34. a5 {[%emt 0:00:10]} Qc7+ {[%emt 0:01:17]} 35. Kg1 {[%emt 0:00:01]} Ne3 {[%emt 0:03:02][%cal Oe3g2] Threatens to win with ...Nxg2!} 36. Qd2 {[%emt 0:00:09]} Bf5 {[%emt 0:02:48]} 37. a6 {[%emt 0:02:00]} bxa6 {[%emt 0:04:00]} 38. Rxa6 $2 {[%emt 0:00:01] [#]} (38. Nc3 Re6 39. Re1 Nxf1 40. Rxf1) 38... Qh2+ $3 {[%emt 0:02:08][%mdl 512]} 39. Kf2 {[%emt 0:00:29]} (39. Kxh2 Nxf1+) 39... Bxh3 {[%emt 0:01:38]} 40. Nc3 {[%emt 0:00:00]} Nxf1 {[%emt 0:00:00] Black mates.} 41. Kxf1 {[%emt 0:00:44]} Qh1+ {[%emt 0:00:42]} 42. Kf2 {[%emt 0:00:02]} Qxg2# {[%emt 0:00:06] Weighted Error Value: White=0.67/Black=0.18 (very precise)} 0-1

[Event "41st Zalakaros Festival 2022"]
[Site "Zalakaros"]
[Date "2022.06.10"]
[Round "6.2"]
[White "Leszko, Bence"]
[Black "Kantor, Gergely"]
[Result "1/2-1/2"]
[ECO "C47"]
[WhiteElo "2248"]
[BlackElo "2587"]
[Annotator "TA"]
[PlyCount "46"]
[EventDate "2022.06.05"]
[EventType "swiss"]
[EventCountry "HUN"]
[SourceTitle "playchess.com"]
[Source "ChessBase"]
[SourceQuality "1"]
[TimeControl "40/5400+30:1800+30"]

{[%evp 18,46,9,8,20,0,7,9,43,26,78,68,87,68,62,37,23,0,121,104,100,67,62,0,139,152,151,145,192,189,170]} 1. e4 {[%emt 0:03:18]} e5 {[%emt 0:03:25]} 2. Nf3 {[%emt 0:00:06]} Nc6 {[%emt 0:00:03]} 3. Nc3 {[%emt 0:00:05]} Nf6 {[%emt 0:00:05]} 4. d4 exd4 {[%emt 0:04:08]} 5. Nxd4 {[%emt 0:00:06]} d6 {[%emt 0:01:22]} 6. Nxc6 {[%emt 0:05:51]} bxc6 {[%emt 0:00:11]} 7. Bd3 {[%emt 0:01:31]} g6 {[%emt 0:02:21]} 8. h3 Bg7 9. Be3 {[%emt 0:05:01]} O-O {[%emt 0:02:14]} 10. O-O {[%emt 0:01:27]} Nd7 {[%emt 0:09:32] C46: 3 Nc3: Unusual Black 3rd moves.} 11. f4 {[%emt 0:01:46] [#]} Re8 $146 {[%emt 0:01:16][%cal Od6d5]} (11... Rb8 $5 {[%cal Rb8b2]}) ({Predecessor:} 11... a5 12. Qd2 Ba6 13. Rf2 Qb8 14. Raf1 Bxd3 15. cxd3 f5 16. g4 Qb4 17. gxf5 gxf5 {½-½ (54) Rada Equiza,M (2236)-Marin,M (2537) Barcelona 2005}) 12. Qf3 {[%emt 0:01:41]} Bb7 {[%emt 0:09:06] The position is equal.} 13. e5 {[%emt 0:13:10]} Qe7 {[%emt 0:06:02] [#]} (13... Nb6 $11) 14. Rae1 $1 $16 {[%emt 0:01:58]} d5 {[%emt 0:00:33]} 15. Bf2 {[%emt 0:06:01]} a5 {[%emt 0:06:45]} 16. Qg4 {[%emt 0:03:07]} Bc8 {[%emt 0:06:23]} 17. Qf3 {[%emt 0:04:45]} Rb8 {[%emt 0:03:20] [#]} (17... Bb7 $11) 18. Na4 $1 {[%emt 0:02:19]} Bb7 {[%emt 0:13:59]} 19. Qg4 {[%emt 0:01:12] Black must now prevent Bh4.} Bc8 {[%emt 0:03:42]} 20. Qf3 {[%emt 0:00:05]} (20. Qg3 $14) 20... Qf8 {[%emt 0:00:53]} (20... Bb7 $1 $11 {keeps the balance.}) 21. b3 {[%emt 0:00:59] White is clearly better.} Bb7 {[%emt 0:00:47]} 22. c4 {White is much more active.} Ba8 {[%emt 0:03:05]} (22... Qe7 $16 23. Re2 Qd8) 23. Rc1 {[%emt 0:07:17]} Qe7 {[%emt 0:03:44] Weighted Error Value: White=0.13 (very precise) /Black=0.42} 1/2-1/2

[Event "41st Zalakaros Festival 2022"]
[Site "Zalakaros"]
[Date "2022.06.10"]
[Round "6.3"]
[White "Horvath, Adam"]
[Black "Farkas, Gabor"]
[Result "1-0"]
[ECO "C55"]
[WhiteElo "2513"]
[BlackElo "2324"]
[Annotator "TA"]
[PlyCount "77"]
[EventDate "2022.06.05"]
[EventType "swiss"]
[EventCountry "HUN"]
[SourceTitle "playchess.com"]
[Source "ChessBase"]
[SourceQuality "1"]
[TimeControl "40/5400+30:1800+30"]

{[%evp 13,77,29,42,50,58,27,50,16,16,10,33,32,25,30,26,16,38,3,20,-95,-34,-80,0,7,116,114,135,118,113,96,132,83,86,37,158,147,358,350,512,493,492,488,620,626,605,604,661,663,646,639,830,828,830,666,736,700,768,740,856,815,806,793,1098,1087,1247,1129]} 1. e4 {[%emt 0:00:42]} e5 {[%emt 0:00:36]} 2. Nf3 {[%emt 0:00:06]} Nc6 {[%emt 0:00:04]} 3. Bc4 {[%emt 0:00:10]} Nf6 {[%emt 0:03:40]} 4. d3 {[%emt 0:00:12]} Be7 {[%emt 0:00:33]} 5. O-O {[%emt 0:00:35]} O-O {[%emt 0:01:06]} 6. Re1 {[%emt 0:00:57]} d6 {[%emt 0:00:25]} 7. a4 {[%emt 0:00:06]} Kh8 {[%emt 0:01:13] 7...h6 is a critical line.} 8. h3 {[%emt 0:02:42] C55: Two Knights: 4 d3, 4 d4 exd4 5 e5 and Max Lange Attack.} Be6 {[%emt 0:04:08]} 9. a5 {[%emt 0:22:51]} a6 {[%emt 0:00:32] [#]} 10. Bxe6 $146 {[%emt 0:13:38] White is slightly better.} ({Predecessor:} 10. Nbd2 Ng8 11. Bxe6 fxe6 12. c3 Qd7 13. Nf1 Rf7 14. Ng3 Raf8 15. Be3 Bf6 16. d4 exd4 17. cxd4 {0-1 (45) Mingarro Carceller,S (2361)-Pap,M (2480) Lorca 2018}) 10... fxe6 {[%emt 0:00:11]} 11. c3 {[%emt 0:00:06]} Qd7 {[%emt 0:12:39]} 12. Nbd2 {[%emt 0:03:59]} Nh5 {[%emt 0:01:08]} 13. Nf1 {[%emt 0:16:11]} Nf4 {[%emt 0:01:42]} 14. b4 {[%emt 0:00:08]} Qe8 {[%emt 0:01:22]} 15. Kh2 {[%emt 0:09:40]} Qf7 {[%emt 0:02:19]} 16. Ng1 {[%emt 0:00:51]} (16. Bxf4 $11 {remains equal.} Qxf4+ 17. Ng3) 16... g5 {[%emt 0:10:37]} (16... Nxg2 17. Kxg2 d5 18. Qe2 $16 (18. Qf3 d4 $16)) (16... d5 $17 {...d4 is the strong threat.} 17. Bxf4 Qxf4+ 18. Ng3 d4 19. cxd4 exd4) 17. Ra2 {[%emt 0:00:39]} (17. Rb1 $15) 17... Rg8 {[%emt 0:02:14]} (17... d5 $17 {Strongly threatening ...d4.} 18. g3 Ng6) 18. g3 $11 {[%emt 0:04:11]} Rg6 {[%emt 0:13:11]} 19. Kh1 $16 {[%emt 0:04:43]} (19. gxf4 gxf4 20. Kh1 Qg7 $14) 19... Rag8 {[%emt 0:03:50][%cal Og6h6]} 20. Nh2 $1 {[%emt 0:06:12]} ({Much less strong is} 20. gxf4 $6 gxf4 21. Nh2 Qg7 $14) 20... Qg7 {[%emt 0:10:40]} 21. Rd2 {[%emt 0:07:08]} Rh6 {[%emt 0:02:11]} 22. gxf4 {[%emt 0:04:06]} ({White should try} 22. Ng4 Nxh3 23. Nxh3 (23. Nxh6 Qxh6 24. Nxh3 Qxh3+ 25. Kg1 d5 $16) 23... Rxh3+ 24. Kg2) 22... gxf4 {[%emt 0:00:06][%csl Gg8][%cal Rg7g2] [#]} 23. Qf3 {[%emt 0:01:14] Prevents Qg2+.} (23. f3 $1 $16) 23... Rg6 {[%emt 0:00:14] [#]} (23... Nd8 $1 $14) 24. Rdd1 $1 {[%emt 0:00:46]} ({But not} 24. Ng4 $2 h5 25. Rdd1 hxg4 26. hxg4 Qh7+ 27. Nh3 Nd8 $19) 24... d5 $2 {[%emt 0:05:03] This costs Black the game.} (24... Nd8 $16 25. Bb2 (25. Ng4 Nf7 $16) 25... Qh6) 25. exd5 $18 {[%emt 0:00:29]} e4 {[%emt 0:00:55]} (25... exd5 {was called for.} 26. Qxd5 Rh6) 26. Qxe4 {[%emt 0:00:30] White is clearly winning.} exd5 {[%emt 0:00:15]} 27. Qxd5 {[%emt 0:00:29]} Bh4 {[%emt 0:00:43]} 28. Ng4 {[%emt 0:00:34]} Rg5 {[%emt 0:00:29]} 29. Qe6 {[%emt 0:00:25]} Rg6 {[%emt 0:01:06]} 30. Qf5 {[%emt 0:00:19]} Rf8 {[%emt 0:01:10]} 31. Qh5 {[%emt 0:00:40]} Bd8 {[%emt 0:00:29]} 32. Nf3 {[%emt 0:00:10] Inhibits Rg5.} Ne7 {[%emt 0:00:35]} 33. Qe5 {[%emt 0:00:33]} Qxe5 {[%emt 0:00:42]} 34. Rxe5 {[%emt 0:00:27]} Nc6 {[%emt 0:00:09]} 35. Re4 {[%emt 0:00:10]} Rfg8 {[%emt 0:00:30]} 36. Rde1 {[%emt 0:00:27]} h5 {[%emt 0:00:20]} 37. Nge5 {[%emt 0:00:03]} Rg2 {[%emt 0:00:24]} 38. Nxc6 {[%emt 0:00:36]} Rxf2 {[%emt 0:00:25]} 39. Nce5 {[%emt 0:01:28] Weighted Error Value: White=0.19 (very precise) /Black=0.55} 1-0

[Event "41st Zalakaros Festival 2022"]
[Site "Zalakaros"]
[Date "2022.06.10"]
[Round "6.4"]
[White "Papp, Levente"]
[Black "Peczely, Sebastian Zsombor"]
[Result "0-1"]
[ECO "D26"]
[WhiteElo "2401"]
[BlackElo "2313"]
[Annotator "TA"]
[PlyCount "76"]
[EventDate "2022.06.05"]
[EventType "swiss"]
[EventCountry "HUN"]
[SourceTitle "playchess.com"]
[Source "ChessBase"]
[SourceQuality "1"]
[TimeControl "40/5400+30:1800+30"]

{[%evp 11,76,27,45,14,56,28,81,73,97,89,137,118,102,127,121,-79,-77,-71,-66,-70,-55,-56,-55,-70,-81,-81,-75,-65,-38,-90,-81,-91,-89,-136,-112,-127,-114,-141,-107,-262,-265,-264,-219,-274,-272,-270,-259,-272,-272,-323,-319,-310,-294,-1422,-1333,-1264,-654,-751,-708,-29976,-29976,-29976,-29976,-6116,-5681,-29983,-6949]} 1. d4 {[%emt 0:00:32]} d5 {[%emt 0:03:39]} 2. Nf3 {[%emt 0:00:20]} Nf6 {[%emt 0:00:08]} 3. c4 {[%emt 0:00:05]} dxc4 {[%emt 0:03:53]} 4. e3 {[%emt 0:00:34]} e6 {[%emt 0:00:40]} 5. Bxc4 {[%emt 0:00:06]} Be7 {[%emt 0:00:04]} 6. O-O {[%emt 0:00:07]} O-O {[%emt 0:00:05]} 7. Nc3 {[%emt 0:00:21] D26: Queen's Gambit Accepted: 4 e3 e6 5 Bxc5 c5 sidelines.} b6 {[%emt 0:01:08]} 8. e4 {[%emt 0:03:41]} Bb7 {[%emt 0:07:55]} (8... c5 $11) 9. Qe2 $16 {[%emt 0:00:33] White is better.} Nc6 {[%emt 0:05:17]} 10. Rd1 $1 {[%emt 0:01:48] [#]} a6 $146 {[%emt 0:06:28]} (10... Na5 $142) ({Predecessor:} 10... Na5 11. Bd3 c5 12. dxc5 Bxc5 13. e5 Bxf3 14. Qxf3 Nd5 15. Be4 Qe7 16. Nxd5 exd5 17. Bxd5 {1-0 (23) Berner,R-Suhr,M freechess.de 2017}) 11. d5 {[%emt 0:12:39]} exd5 {[%emt 0:01:02]} 12. e5 {[%emt 0:00:15]} (12. exd5 $6 Na5 $11) 12... Re8 {[%emt 0:12:46][%cal Oe7d6] And now ...Bd6! would win.} 13. exf6 $2 {[%emt 0:22:48]} (13. Nxd5 $16 {and life is bright.} Nxd5 14. Bxd5) 13... Bd6 $17 {[%emt 0:00:37]} 14. Be3 {[%emt 0:12:59]} dxc4 {[%emt 0:00:11]} 15. Nd5 {[%emt 0:00:29]} Ne5 {[%emt 0:19:46]} 16. Nxe5 {[%emt 0:06:22]} Bxd5 {[%emt 0:03:24]} (16... Rxe5 17. Qg4 (17. Ne7+ Rxe7 18. fxe7 Qxe7 $11) 17... g6 18. Ne7+ Rxe7 19. fxe7 Qxe7 20. Qxc4 $11) 17. Ng4 {[%emt 0:03:10]} Be6 {[%emt 0:07:23] A strong pair of Bishops.} 18. fxg7 {[%emt 0:00:45]} Bxg4 {[%emt 0:01:37]} 19. Qxg4 {[%emt 0:00:02]} b5 {[%emt 0:00:11]} 20. Qf3 {[%emt 0:10:48] Inhibits Qf6.} (20. Bd4 $1 $15) 20... Qh4 {[%emt 0:01:19]} 21. g3 {[%emt 0:01:53]} Qe4 {[%emt 0:00:15]} 22. Qh5 {[%emt 0:02:53]} (22. Qxe4 $142 Rxe4 23. Kg2) 22... Re5 {[%emt 0:01:18] The board is on fire.} 23. Qh3 {[%emt 0:00:01]} Rae8 {[%emt 0:08:26]} 24. Rd4 {[%emt 0:05:56]} Qf5 {[%emt 0:00:20]} 25. Qg2 {[%emt 0:00:41] [#] Now White is beyond hope.} (25. Qxf5 $17 {was necessary.} Rxf5 26. Rf1) 25... Bc5 $1 $19 {[%emt 0:02:10]} (25... Kxg7 26. Rf4 Qg6 27. Bd4 $14) 26. Rf4 {[%emt 0:00:06]} Qd3 {[%emt 0:01:31]} 27. Kh1 {[%emt 0:02:30]} Bxe3 {[%emt 0:00:20]} 28. fxe3 {[%emt 0:00:01]} Rxe3 {[%emt 0:01:36] Threatens to win with ...Re1+.} 29. Raf1 {[%emt 0:01:24] [#]} Re2 $1 {[%emt 0:04:15]} ({Worse is} 29... Re1 30. Rxf7 Qe4 31. Rf8+ Kxg7 32. R8f7+ Kg8 33. h3 $17) 30. Qc6 {[%emt 0:00:02]} Re1 {[%emt 0:00:18]} 31. Kg2 {[%emt 0:00:01]} ({Of course not} 31. Kg1 Rxf1+ 32. Rxf1 Re2 $19) 31... R8e2+ {[%emt 0:03:37]} 32. Kh3 $2 {[%emt 0:01:16]} (32. R1f2 Rxf2+ 33. Rxf2) 32... Rxf1 {[%emt 0:00:49]} 33. Rxf1 {[%emt 0:00:02][%mdl 4096] Endgame KQR-KQR} Re6 {[%emt 0:00:44]} 34. Qa8+ {[%emt 0:04:19]} Kxg7 {[%emt 0:00:05]} 35. Rf3 {[%emt 0:00:04]} Qe2 {[%emt 0:00:41]} 36. Qd5 {[%emt 0:00:26]} Rh6+ {[%emt 0:00:20]} 37. Kg4 {[%emt 0:00:02]} Rf6 {[%emt 0:00:37]} 38. a4 {[%emt 0:02:13]} h5+ {[%emt 0:00:09] Weighted Error Value: White=0.85/Black=0.19 (very precise)} (38... Qxf3+ $142 39. Qxf3 h5+ 40. Kxh5 Rxf3 41. axb5 axb5 42. Kg5 Rf2 43. g4 Rxb2 44. Kf4 c3 45. Ke3 Rxh2 46. Kf3 c2 47. Kf4 c1=Q+ 48. Kf3 Rh3+ 49. Ke4 Qc4+ 50. Ke5 f6+ 51. Kf5 Rf3#) 0-1

[Event "41st Zalakaros Festival 2022"]
[Site "Zalakaros"]
[Date "2022.06.10"]
[Round "6.5"]
[White "Forgacs, Attila Jr."]
[Black "Sammed Jaykumar, Shete"]
[Result "0-1"]
[ECO "B48"]
[WhiteElo "2234"]
[BlackElo "2400"]
[Annotator "TA"]
[PlyCount "104"]
[EventDate "2022.06.05"]
[EventType "swiss"]
[EventCountry "HUN"]
[SourceTitle "playchess.com"]
[Source "ChessBase"]
[SourceQuality "1"]
[TimeControl "40/5400+30:1800+30"]

{[%evp 16,104,40,30,28,29,26,24,49,2,11,7,12,0,-10,-28,-35,-38,-35,-54,-26,-57,-49,-77,-76,-77,-78,-93,-59,-91,-65,-84,-80,-166,-166,-166,-166,-166,-163,-164,-156,-206,-224,-217,-222,-249,-229,-247,-238,-270,-252,-335,-319,-394,-405,-547,-551,-503,-1646,-1704,-1730,-1081,-2225,-29969,-1578,-29968,-29971,-29971,-29972,-29972,-29973,-29974,-29975,-29976,-29974,-29975,-29976,-29976,-29977,-29977,-29978,-29978,-29979,-29980,-29981,-29982,-29983,-29993,-29994,-29995,-29996]} 1. e4 {[%emt 0:00:33]} c5 {[%emt 0:00:35]} 2. Nf3 {[%emt 0:00:04]} e6 {[%emt 0:00:17]} 3. d4 {[%emt 0:00:04]} cxd4 {[%emt 0:00:04]} 4. Nxd4 {[%emt 0:00:06]} Nc6 {[%emt 0:00:04]} 5. Nc3 {[%emt 0:00:25]} Qc7 {[%emt 0:00:06]} 6. Be3 {[%emt 0:00:10]} a6 {[%emt 0:00:10]} 7. a3 {[%emt 0:00:19]} b5 {[%emt 0:00:09]} 8. Nxc6 {[%emt 0:00:26]} Qxc6 {[%emt 0:00:06]} 9. Be2 {[%emt 0:00:21]} Bb7 {[%emt 0:00:07] B49: Sicilian: Taimanov: 5 Nc3 Qc7 6 Be3 a6 7 Be2.} 10. O-O {[%emt 0:00:59]} Rc8 {[%emt 0:00:28]} 11. Qd3 {[%emt 0:01:49]} Ne7 {[%emt 0:02:55][%cal Bg8e7,Be7g6,Bg6e5,Be5d3][%mdl 32] White has an edge.} 12. Bf3 {[%emt 0:11:40]} (12. Rfd1 $14) 12... Qc7 $11 {[%emt 0:00:06]} 13. Rfd1 {[%emt 0:09:05] [#]} Ng6 $146 {[%emt 0:04:26] [#]} ({Predecessor:} 13... Bc6 14. a4 b4 15. Ne2 Ng6 16. Bd4 Qb7 17. c3 e5 18. Be3 Be7 19. cxb4 Bxb4 {0-1 (40) Papp,P (2338)-Ramirez Alvarez,A (2567) Chess.com INT 2020}) 14. Bb6 $1 {[%emt 0:06:27]} Ne5 {[%emt 0:01:11]} 15. Bxc7 {[%emt 0:03:05]} (15. Qd4 {seems wilder.} Bc5 16. Bxc5 Qxc5 17. Be2) 15... Nxd3 {[%emt 0:00:06]} 16. cxd3 {[%emt 0:01:14] Hoping for Ba5.} Rxc7 {[%emt 0:00:06]} 17. Rac1 {[%emt 0:01:58]} Be7 {[%emt 0:03:45]} 18. Ne2 {[%emt 0:04:53]} Kd8 {[%emt 0:02:14][%cal Be8d8,Bd8c7,Bc7b6][%mdl 32]} 19. Rxc7 {[%emt 0:07:09]} Kxc7 {[%emt 0:00:11] White is now going downhill.} 20. Rc1+ {[%emt 0:00:14]} Kb6 {[%emt 0:00:18]} 21. Kf1 {[%emt 0:00:51]} Rf8 {[%emt 0:09:23]} 22. Rc2 {[%emt 0:06:35]} a5 {[%emt 0:03:04]} 23. Nc1 {[%emt 0:07:32]} Bf6 {[%emt 0:03:46]} 24. Ke2 {[%emt 0:02:20] [#]} (24. e5 $17 {keeps fighting.} Bxe5 25. Bxb7 Kxb7 26. Rc5) 24... Rc8 $1 $19 {[%emt 0:01:37]} 25. Kd2 {[%emt 0:03:20]} Rxc2+ {[%emt 0:00:11]} ({And not} 25... Bg5+ 26. Kd1 $15) 26. Kxc2 {[%emt 0:00:06][%mdl 4096] Endgame KBB-KBN} Bd4 {[%emt 0:00:03]} 27. Ne2 {[%emt 0:03:20]} Bxf2 {[%emt 0:00:19]} 28. d4 {[%emt 0:00:58]} (28. b4 $17 {was called for.}) 28... b4 {[%emt 0:04:53]} 29. axb4 {[%emt 0:01:49]} axb4 {[%emt 0:00:05]} 30. b3 {[%emt 0:02:04]} Ba6 {[%emt 0:00:13]} 31. Kd2 {[%emt 0:01:31]} g6 {[%emt 0:01:46][%cal Bg7g6,Bg6f5][%mdl 32]} 32. h3 {[%emt 0:00:38]} h5 {[%emt 0:01:57][%cal Bh7h5,Bh5h4][%mdl 32]} 33. Kd1 {[%emt 0:01:30]} Be3 {[%emt 0:00:19]} 34. Kc2 {[%emt 0:01:05]} h4 {[%emt 0:02:11]} 35. Bg4 {[%emt 0:01:14]} f5 {[%emt 0:00:28]} 36. exf5 {[%emt 0:01:25]} gxf5 {[%emt 0:00:07]} 37. Bf3 {[%emt 0:00:27]} Bxe2 {[%emt 0:01:12]} 38. Bxe2 {[%emt 0:00:05]} Bxd4 {[%emt 0:00:02] ( -> ...e5). KB-KB} 39. Bh5 {[%emt 0:01:31]} Kc5 {[%emt 0:00:29]} (39... e5 $142 40. Kd2 d5 41. Bg6 f4 42. Ke2 e4 43. Kd1 Bc3 44. Ke2 Bd4 45. Bh5 Kc5 46. Bg4 Bc3 47. Bf5 Kd6 48. Bg6 Ke5 49. Bh5 d4 50. Bg4 d3+ 51. Kd1 e3 52. Bh5 e2+ 53. Bxe2 dxe2+ 54. Kxe2 Ke4 55. Kf2 Bd4+ 56. Ke2 Be3 57. Kf1 Kd3 58. Ke1 Bd4 59. Kd1 Bf2 60. Kc1 Be3+ 61. Kb1 Bd4 62. Kc1 Bc3 63. Kb1 Kd2 64. Ka2 Kc2 65. g4 hxg3 66. h4 g2 67. h5 g1=Q 68. h6 Qb1#) 40. Be8 {[%emt 0:00:00]} d5 {[%emt 0:00:00] Black mates.} 41. Bd7 {[%emt 0:01:47]} Kd6 {[%emt 0:00:20]} 42. Bc8 {[%emt 0:00:06]} f4 {[%emt 0:00:03]} 43. Kd3 {[%emt 0:03:54]} e5 {[%emt 0:00:26][%cal Be6e5,Be5e4][%mdl 32]} 44. Bb7 {[%emt 0:02:14]} Kc5 {[%emt 0:00:15]} 45. Ba8 {[%emt 0:01:54]} e4+ {[%emt 0:00:06]} 46. Kd2 {[%emt 0:00:51]} Bc3+ {[%emt 0:01:05]} 47. Ke2 {[%emt 0:00:19]} Kd4 {[%emt 0:00:03]} 48. Bc6 {[%emt 0:00:18]} Ke5 {[%emt 0:00:05]} 49. Bb5 {[%emt 0:01:12]} d4 {[%emt 0:00:05][%cal Bd5d4,Bd4d3][%mdl 32]} 50. Bc4 {[%emt 0:00:19]} d3+ {[%emt 0:00:05]} 51. Kd1 {[%emt 0:00:10]} Kd4 {[%emt 0:00:05]} 52. Kc1 {[%emt 0:00:21]} e3 {[%emt 0:00:05] Weighted Error Value: White=0.61/Black=0.25 (precise)} 0-1

[Event "41st Zalakaros Festival 2022"]
[Site "Zalakaros"]
[Date "2022.06.10"]
[Round "6.6"]
[White "Fodor, Balazs"]
[Black "Okhotnik, Vladimir"]
[Result "0-1"]
[ECO "A43"]
[WhiteElo "2126"]
[BlackElo "2336"]
[Annotator "TA"]
[PlyCount "58"]
[EventDate "2022.06.05"]
[EventType "swiss"]
[EventCountry "HUN"]
[SourceTitle "playchess.com"]
[Source "ChessBase"]
[SourceQuality "1"]
[TimeControl "40/5400+30:1800+30"]

{[%evp 25,58,41,70,0,0,0,17,4,10,17,55,47,43,52,80,87,77,78,206,208,192,204,184,171,205,40,38,45,49,20,20,0,0,0,50]} 1. d4 {[%emt 0:00:37]} c5 {[%emt 0:00:40]} 2. d5 {[%emt 0:00:23]} d6 {[%emt 0:00:14]} 3. c4 {[%emt 0:00:18]} Nf6 {[%emt 0:00:12]} 4. Nc3 {[%emt 0:00:50]} g6 {[%emt 0:00:06]} 5. g3 {[%emt 0:00:07]} Bg7 {[%emt 0:00:07]} 6. Bg2 {[%emt 0:00:07]} O-O {[%emt 0:00:08][%cal Bh8f8,Bf8e8,Be8e4,Be4b4][%mdl 32]} 7. Nf3 {[%emt 0:00:06]} e6 {[%emt 0:00:22]} 8. O-O {[%emt 0:00:21]} exd5 {[%emt 0:00:10]} 9. cxd5 {[%emt 0:00:08]} a6 {[%emt 0:00:42]} 10. a4 {[%emt 0:01:25]} Re8 {[%emt 0:00:10]} 11. Bf4 {[%emt 0:01:48]} Ne4 {[%emt 0:00:24]} 12. Nxe4 {[%emt 0:00:09]} Rxe4 {[%emt 0:00:04]} 13. Nd2 {[%emt 0:00:12]} Rb4 {[%emt 0:03:22]} 14. b3 {[%emt 0:07:20] A62: Modern Benoni: Fianchetto Variation without early ...Nbd7.} g5 $11 {[%emt 0:06:39]} 15. Be3 {[%emt 0:03:17] And now Rc1 would win.} Bf5 {[%emt 0:03:34] [#]} 16. Ra3 $146 {[%emt 0:09:30][%cal Ba1a3,Ba3a2,Ba2f2][%mdl 32] next Nc4 is good for White.} ({Predecessor:} 16. Ra2 Bd4 17. Nc4 Bxe3 18. Nxe3 Be4 19. f3 Bg6 20. Nc4 Qe7 21. e4 Nd7 22. f4 {1-0 (32) Sharevich,A (2257)-Schulz,S (2075) Germany 2012}) 16... Nd7 {[%emt 0:01:36]} 17. Nc4 {[%emt 0:04:45]} Ne5 {[%emt 0:07:01]} 18. Nxe5 {[%emt 0:02:24]} Bxe5 {[%emt 0:00:19]} 19. Bd2 {[%emt 0:06:00]} Rc8 {[%emt 0:08:32]} 20. Bxb4 {[%emt 0:01:40]} cxb4 {[%emt 0:00:05]} 21. Ra2 {[%emt 0:00:12]} Rc3 {[%emt 0:00:16]} (21... g4 $16 {is a better defense.}) 22. e4 $18 {[%emt 0:01:11]} Bd7 {[%emt 0:00:24] [#]} 23. f4 $1 {[%emt 0:08:46]} Bg7 {[%emt 0:00:12]} 24. Kh1 {[%emt 0:08:59]} h6 {[%emt 0:00:20]} 25. fxg5 $2 {[%emt 0:01:40]} (25. Raf2 $18) 25... Qxg5 $14 {[%emt 0:00:38]} 26. Raf2 {[%emt 0:00:40]} Bg4 27. Bf3 {[%emt 0:04:33]} Bh3 {[%emt 0:00:32] The position is equal.} 28. Bg2 {[%emt 0:00:01]} Bg4 {[%emt 0:00:14] A strong pair of Bishops.} 29. Bf3 {[%emt 0:05:38]} (29. Qe1 $11 Qh5 30. Qb1 (30. Rxf7 Qxf7 31. Rxf7 Kxf7 $14)) 29... Bh3 {[%emt 0:00:05][%mdl 32768] Weighted Error Value: White=0.31/Black=0.22 (precise) . Loss on time!?} 0-1